[Event "*** Titled Tuesday 3|2 Blitz"]
[Site "Chess.com"]
[Date "2016.10.04"]
[Round "5"]
[White "jncool68"]
[Black "QuintilianoR"]
[Result "1/2-1/2"]
[WhiteElo "2446"]
[BlackElo "2417"]
[TimeControl "180+2"]
[EndTime "12:00:57 PDT"]
[Termination "Game drawn by agreement"]

1. e4 {[%clk 0:02:56.9]} 1... c5 {[%clk 0:03:00.9]} 2. Nf3 {[%clk 0:02:57.8]}
2... d6 {[%clk 0:03:02.3]} 3. d4 {[%clk 0:02:57.9]} 3... cxd4 {[%clk 0:03:04.2]}
4. Nxd4 {[%clk 0:02:59.2]} 4... Nf6 {[%clk 0:03:05.8]} 5. Nc3 {[%clk 0:03:00.5]}
5... g6 {[%clk 0:03:07.4]} 6. Be2 {[%clk 0:03:00.1]} 6... Bg7 {[%clk 0:03:08.7]}
7. Be3 {[%clk 0:03:00.8]} 7... Nc6 {[%clk 0:03:10.2]} 8. Qd2 {[%clk 0:03:02.1]}
8... O-O {[%clk 0:03:09.3]} 9. O-O-O {[%clk 0:03:03]} 9... Ng4 {[%clk
0:03:07.4]} 10. Bxg4 {[%clk 0:03:03.2]} 10... Bxg4 {[%clk 0:03:09.3]} 11. f3
{[%clk 0:03:04.7]} 11... Be6 {[%clk 0:03:08.4]} 12. Nxe6 {[%clk 0:03:05.8]}
12... fxe6 {[%clk 0:03:09.1]} 13. Bh6 {[%clk 0:03:07.5]} 13... Qa5 {[%clk
0:02:59.2]} 14. Bxg7 {[%clk 0:03:06]} 14... Kxg7 {[%clk 0:03:00.3]} 15. h4
{[%clk 0:03:06.7]} 15... h5 {[%clk 0:02:54.6]} 16. Kb1 {[%clk 0:03:02.6]} 16...
Rac8 {[%clk 0:02:53.1]} 17. g4 {[%clk 0:02:59.4]} 17... Rxf3 {[%clk 0:02:46.6]}
18. gxh5 {[%clk 0:02:59.1]} 18... Qxh5 {[%clk 0:02:47.5]} 19. Rdg1 {[%clk
0:02:59.8]} 19... Ne5 {[%clk 0:02:40.7]} 20. Rg5 {[%clk 0:02:58]} 20... Qh6
{[%clk 0:02:40.1]} 21. Rhg1 {[%clk 0:02:55.2]} 21... Rcf8 {[%clk 0:02:17.9]} 22.
b3 {[%clk 0:02:24.1]} 22... Rf1+ {[%clk 0:02:07.2]} 23. Rxf1 {[%clk 0:02:25]}
23... Rxf1+ {[%clk 0:02:09]} 24. Kb2 {[%clk 0:02:26.4]} 24... Nf3 {[%clk
0:01:54]} 25. Qg2 {[%clk 0:02:12.2]} 25... Nxg5 {[%clk 0:01:54.4]} 26. Qxf1
{[%clk 0:02:12.3]} 26... Qxh4 {[%clk 0:01:55.9]} 27. Qc4 {[%clk 0:02:11.9]}
27... Kf7 {[%clk 0:01:46.3]} 28. Qd4 {[%clk 0:02:09.7]} 28... a6 {[%clk
0:01:43.2]} 29. Qb4 {[%clk 0:01:56.8]} 29... d5 {[%clk 0:01:37.6]} 30. Qxb7
{[%clk 0:01:55.7]} 30... Nxe4 {[%clk 0:01:36.5]} 31. Qxa6 {[%clk 0:01:55.1]}
31... Nxc3 {[%clk 0:01:33.6]} 32. Kxc3 {[%clk 0:01:55.6]} 32... Qf6+ {[%clk
0:01:34.7]} 33. Kb4 {[%clk 0:01:56]} 33... Qd4+ {[%clk 0:01:31.4]} 34. c4 {[%clk
0:01:57.1]} 34... g5 {[%clk 0:01:32.7]} 35. Qc8 {[%clk 0:01:45.7]} 35... Qd2+
{[%clk 0:01:30.3]} 36. Kb5 {[%clk 0:01:45.5]} 36... Qxa2 {[%clk 0:01:31.1]} 37.
Kb4 {[%clk 0:01:43.2]} 37... Qd2+ {[%clk 0:01:28.8]} 38. Kb5 {[%clk 0:01:44]}
38... Qc3 {[%clk 0:01:28.8]} 39. Ka4 {[%clk 0:01:42.9]} 39... d4 {[%clk
0:01:28.9]} 40. Qc6 {[%clk 0:01:39]} 40... g4 {[%clk 0:01:28.6]} 41. Qe4 {[%clk
0:01:39]} 41... g3 {[%clk 0:01:22.2]} 42. Qf4+ {[%clk 0:01:39.7]} 42... Ke8
{[%clk 0:01:20.5]} 43. Qb8+ {[%clk 0:01:40.5]} 43... Kd7 {[%clk 0:01:21.5]} 44.
Qb7+ {[%clk 0:01:37.2]} 44... Kd6 {[%clk 0:01:22.7]} 45. Qb8+ {[%clk 0:01:38.4]}
45... Kd7 {[%clk 0:01:23.9]} 46. Qb7+ {[%clk 0:01:38.7]} 46... Ke8 {[%clk
0:01:25.3]} 47. Qb8+ {[%clk 0:01:40]} 47... Kf7 {[%clk 0:01:26.5]} 48. Qf4+
{[%clk 0:01:40.7]} 48... Kg6 {[%clk 0:01:27.1]} 49. Qg4+ {[%clk 0:01:41.8]}
49... Kf6 {[%clk 0:01:28.6]} 50. Qf4+ {[%clk 0:01:43.1]} 50... Kg7 {[%clk
0:01:29.9]} 51. Qg4+ {[%clk 0:01:42.5]} 51... Kf8 {[%clk 0:01:29.3]} 52. Qf4+
{[%clk 0:01:43.5]} 52... Ke8 {[%clk 0:01:30.7]} 53. Qb8+ {[%clk 0:01:44.2]}
53... Kd7 {[%clk 0:01:32.1]} 54. Qb7+ {[%clk 0:01:45.2]} 54... Kd6 {[%clk
0:01:33.7]} 55. Qb8+ {[%clk 0:01:46.3]} 55... Kc6 {[%clk 0:01:34.1]} 56. Qc8+
{[%clk 0:01:43.2]} 56... Kd6 {[%clk 0:01:35.1]} 57. Qb8+ {[%clk 0:01:44.3]}
57... Kd7 {[%clk 0:01:36.4]} 58. Qb7+ {[%clk 0:01:45.4]} 58... Ke8 {[%clk
0:01:37.5]} 59. Qb8+ {[%clk 0:01:46.7]} 59... Kf7 {[%clk 0:01:39]} 60. Qf4+
{[%clk 0:01:48]} 60... Kg6 {[%clk 0:01:40.6]} 61. Qg4+ {[%clk 0:01:47.4]}
1/2-1/2

[Event "*** Titled Tuesday 3|2 Blitz"]
[Site "Chess.com"]
[Date "2016.10.04"]
[Round "5"]
[White "sandropozo"]
[Black "keisyzrk"]
[Result "1-0"]
[WhiteElo "2351"]
[BlackElo "2273"]
[TimeControl "180+2"]
[EndTime "12:01:09 PDT"]
[Termination "sandropozo won by resignation"]

1. d4 {[%clk 0:02:59.1]} 1... d5 {[%clk 0:03:00.3]} 2. c4 {[%clk 0:02:58.7]}
2... c6 {[%clk 0:03:01.7]} 3. Nc3 {[%clk 0:02:58.6]} 3... Nf6 {[%clk 0:03:02.9]}
4. Nf3 {[%clk 0:02:59.6]} 4... e6 {[%clk 0:03:04.3]} 5. g3 {[%clk 0:03:00.2]}
5... dxc4 {[%clk 0:03:04.4]} 6. Bg2 {[%clk 0:02:59.7]} 6... b5 {[%clk
0:03:05.9]} 7. Ne5 {[%clk 0:03:00.6]} 7... Qb6 {[%clk 0:03:00.9]} 8. O-O {[%clk
0:03:00]} 8... Bb7 {[%clk 0:03:01.9]} 9. b3 {[%clk 0:02:36.7]} 9... c5 {[%clk
0:03:00.9]} 10. Bxb7 {[%clk 0:02:27]} 10... Qxb7 {[%clk 0:03:00.9]} 11. bxc4
{[%clk 0:02:23.8]} 11... b4 {[%clk 0:03:01.1]} 12. Qa4+ {[%clk 0:01:33.7]} 12...
Nbd7 {[%clk 0:02:59.2]} 13. Rb1 {[%clk 0:01:22.4]} 13... cxd4 {[%clk 0:02:54.7]}
14. Nb5 {[%clk 0:01:14.4]} 14... Bc5 {[%clk 0:02:32]} 15. Rxb4 {[%clk
0:00:46.8]} 15... O-O {[%clk 0:02:03.2]} 16. Nxd7 {[%clk 0:00:44.1]} 16... Qxd7
{[%clk 0:02:03.8]} 17. Qb3 {[%clk 0:00:29.3]} 17... Bxb4 {[%clk 0:01:56.9]} 18.
Qxb4 {[%clk 0:00:30.4]} 18... a6 {[%clk 0:01:44.1]} 19. Nd6 {[%clk 0:00:27.8]}
19... Rfd8 {[%clk 0:01:30.4]} 20. c5 {[%clk 0:00:20.7]} 20... e5 {[%clk
0:01:27.5]} 21. Bg5 {[%clk 0:00:19.7]} 21... Qe6 {[%clk 0:01:26.1]} 22. f4
{[%clk 0:00:19.5]} 22... Nd5 {[%clk 0:01:26.7]} 23. Qc4 {[%clk 0:00:18.9]} 23...
f6 {[%clk 0:01:24.8]} 24. f5 {[%clk 0:00:20.1]} 24... Qxd6 {[%clk 0:01:14.4]}
25. cxd6 {[%clk 0:00:20.3]} 25... Rxd6 {[%clk 0:01:16.3]} 26. Bd2 {[%clk
0:00:19.9]} 26... Rad8 {[%clk 0:01:16.7]} 27. Rc1 {[%clk 0:00:19.4]} 27... h6
{[%clk 0:01:15.6]} 28. Ba5 {[%clk 0:00:17.5]} 28... R8d7 {[%clk 0:01:13.3]} 29.
Bb4 {[%clk 0:00:18.1]} 29... Rb6 {[%clk 0:00:53.6]} 30. Qc8+ {[%clk 0:00:17.6]}
30... Kh7 {[%clk 0:00:55.1]} 31. Qxd7 {[%clk 0:00:18.8]} 31... Nxb4 {[%clk
0:00:54]} 32. Rc7 {[%clk 0:00:19.2]} 1-0

[Event "*** Titled Tuesday 3|2 Blitz"]
[Site "Chess.com"]
[Date "2016.10.04"]
[Round "5"]
[White "Mornar1951"]
[Black "tango_argentino"]
[Result "1-0"]
[WhiteElo "2589"]
[BlackElo "2359"]
[TimeControl "180+2"]
[EndTime "12:01:12 PDT"]
[Termination "Mornar1951 won by checkmate"]

1. Nf3 {[%clk 0:03:02]} 1... Nf6 {[%clk 0:02:58.6]} 2. c4 {[%clk 0:03:03.1]}
2... g6 {[%clk 0:02:59]} 3. Nc3 {[%clk 0:03:04.7]} 3... Bg7 {[%clk 0:02:58.8]}
4. e4 {[%clk 0:03:05.1]} 4... d6 {[%clk 0:03:00.3]} 5. d4 {[%clk 0:03:06.6]}
5... O-O {[%clk 0:03:01.6]} 6. Be2 {[%clk 0:03:08.3]} 6... e5 {[%clk 0:03:02.7]}
7. O-O {[%clk 0:03:09.8]} 7... Qe8 {[%clk 0:03:03.9]} 8. dxe5 {[%clk 0:03:04]}
8... dxe5 {[%clk 0:03:05.8]} 9. b4 {[%clk 0:03:04]} 9... Bg4 {[%clk 0:03:04.9]}
10. Be3 {[%clk 0:02:45.3]} 10... Nc6 {[%clk 0:02:49.5]} 11. Qb3 {[%clk
0:02:39.2]} 11... Bxf3 {[%clk 0:02:49.1]} 12. Bxf3 {[%clk 0:02:39.8]} 12... Nd4
{[%clk 0:02:44.2]} 13. Bxd4 {[%clk 0:02:41]} 13... exd4 {[%clk 0:02:46.1]} 14.
Nd5 {[%clk 0:02:41.4]} 14... Qe5 {[%clk 0:02:40.7]} 15. Rfe1 {[%clk 0:02:25.5]}
15... c6 {[%clk 0:02:41.4]} 16. Nxf6+ {[%clk 0:02:25.6]} 16... Bxf6 {[%clk
0:02:42.1]} 17. Rad1 {[%clk 0:02:21.3]} 17... a5 {[%clk 0:02:40.2]} 18. a3
{[%clk 0:02:19]} 18... axb4 {[%clk 0:02:41.2]} 19. axb4 {[%clk 0:02:20.9]} 19...
Ra7 {[%clk 0:02:36]} 20. b5 {[%clk 0:02:15.7]} 20... c5 {[%clk 0:02:33.8]} 21.
b6 {[%clk 0:02:00.5]} 21... Ra5 {[%clk 0:02:31]} 22. g3 {[%clk 0:01:57.4]} 22...
Rfa8 {[%clk 0:02:32.1]} 23. Bg2 {[%clk 0:01:58.3]} 23... Ra3 {[%clk 0:02:32.3]}
24. Qb5 {[%clk 0:01:59.4]} 24... d3 {[%clk 0:02:33.7]} 25. Qd7 {[%clk
0:01:54.9]} 25... Qd4 {[%clk 0:02:16.7]} 26. Qxb7 {[%clk 0:01:51.2]} 26... Ra2
{[%clk 0:02:16.4]} 27. Rf1 {[%clk 0:01:50.8]} 27... Be5 {[%clk 0:01:40.7]} 28.
Qd5 {[%clk 0:01:34.2]} 28... d2 {[%clk 0:01:23.7]} 29. Rxd2 {[%clk 0:01:23.6]}
29... Qxd2 {[%clk 0:01:20.4]} 30. Qxe5 {[%clk 0:01:25.2]} 30... Rb2 {[%clk
0:01:19]} 31. Qxc5 {[%clk 0:01:23.1]} 31... Rb8 {[%clk 0:01:14.4]} 32. e5 {[%clk
0:01:23.5]} 32... R8xb6 {[%clk 0:01:14.6]} 33. Bd5 {[%clk 0:01:21.8]} 33... Rb1
{[%clk 0:01:04.8]} 34. Qc7 {[%clk 0:01:00.5]} 34... Kg7 {[%clk 0:00:53.4]} 35.
Qxf7+ {[%clk 0:00:58.4]} 35... Kh6 {[%clk 0:00:55]} 36. Qf8+ {[%clk 0:00:54.9]}
36... Kg5 {[%clk 0:00:54.3]} 37. h4+ {[%clk 0:00:52.1]} 37... Kg4 {[%clk
0:00:47]} 38. Bf3+ {[%clk 0:00:52.2]} 38... Kh3 {[%clk 0:00:46.8]} 39. Bg2+
{[%clk 0:00:51.3]} 39... Kg4 {[%clk 0:00:48.7]} 40. Qf3# {[%clk 0:00:51]} 1-0

[Event "*** Titled Tuesday 3|2 Blitz"]
[Site "Chess.com"]
[Date "2016.10.04"]
[Round "5"]
[White "Wolverine_master"]
[Black "annakantane"]
[Result "1-0"]
[WhiteElo "2054"]
[BlackElo "2215"]
[TimeControl "180+2"]
[EndTime "12:01:20 PDT"]
[Termination "Wolverine_master won by checkmate"]

1. e4 {[%clk 0:03:01.9]} 1... c5 {[%clk 0:02:45.5]} 2. Nf3 {[%clk 0:02:59.8]}
2... e6 {[%clk 0:02:45.8]} 3. d4 {[%clk 0:03:01.1]} 3... cxd4 {[%clk 0:02:47.7]}
4. Nxd4 {[%clk 0:03:02.7]} 4... Nc6 {[%clk 0:02:47.8]} 5. Nc3 {[%clk 0:02:56.2]}
5... Qc7 {[%clk 0:02:47.5]} 6. Nxc6 {[%clk 0:02:50.7]} 6... bxc6 {[%clk
0:02:46]} 7. Bd3 {[%clk 0:02:31.1]} 7... Nf6 {[%clk 0:02:43.3]} 8. O-O {[%clk
0:02:28.8]} 8... d5 {[%clk 0:02:33.3]} 9. Qe2 {[%clk 0:02:23.8]} 9... Be7 {[%clk
0:02:20.3]} 10. Bg5 {[%clk 0:02:11]} 10... d4 {[%clk 0:01:46.2]} 11. e5 {[%clk
0:00:51.4]} 11... dxc3 {[%clk 0:01:42.3]} 12. exf6 {[%clk 0:00:51.9]} 12... gxf6
{[%clk 0:01:40.8]} 13. Bc1 {[%clk 0:00:49.7]} 13... cxb2 {[%clk 0:01:13.6]} 14.
Bxb2 {[%clk 0:00:49.4]} 14... Rb8 {[%clk 0:01:14.7]} 15. Bc3 {[%clk 0:00:38]}
15... c5 {[%clk 0:01:09.1]} 16. Rab1 {[%clk 0:00:23.5]} 16... Bb7 {[%clk
0:00:59]} 17. Bb5+ {[%clk 0:00:23.4]} 17... Kf8 {[%clk 0:00:57.6]} 18. Qh5
{[%clk 0:00:20.8]} 18... Rg8 {[%clk 0:00:45.8]} 19. Qh6+ {[%clk 0:00:19.2]}
19... Rg7 {[%clk 0:00:43]} 20. f3 {[%clk 0:00:19]} 20... c4 {[%clk 0:00:28.8]}
21. Bxf6 {[%clk 0:00:13.6]} 21... Qc5+ {[%clk 0:00:18]} 22. Kh1 {[%clk
0:00:13.1]} 22... Bxf6 {[%clk 0:00:18.4]} 23. Qxf6 {[%clk 0:00:15]} 23... Bd5
{[%clk 0:00:13.1]} 24. Bxc4 {[%clk 0:00:12.8]} 24... Rxb1 {[%clk 0:00:11.9]} 25.
Qd8# {[%clk 0:00:13.6]} 1-0

[Event "*** Titled Tuesday 3|2 Blitz"]
[Site "Chess.com"]
[Date "2016.10.04"]
[Round "5"]
[White "agser"]
[Black "dawtonlms"]
[Result "1-0"]
[WhiteElo "2488"]
[BlackElo "2156"]
[TimeControl "180+2"]
[EndTime "12:01:40 PDT"]
[Termination "agser won by resignation"]

1. Nf3 {[%clk 0:03:02]} 1... Nf6 {[%clk 0:03:00.2]} 2. c4 {[%clk 0:03:02.1]}
2... g6 {[%clk 0:03:01.2]} 3. Nc3 {[%clk 0:03:02.9]} 3... Bg7 {[%clk 0:03:02.7]}
4. e4 {[%clk 0:03:03.8]} 4... d6 {[%clk 0:03:03.7]} 5. d4 {[%clk 0:03:05.1]}
5... O-O {[%clk 0:03:04.6]} 6. h3 {[%clk 0:03:06.7]} 6... e5 {[%clk 0:03:04.8]}
7. d5 {[%clk 0:03:08.2]} 7... a5 {[%clk 0:03:05.2]} 8. g4 {[%clk 0:03:08.4]}
8... Nfd7 {[%clk 0:03:03.3]} 9. Be3 {[%clk 0:03:04.1]} 9... Na6 {[%clk
0:03:03.9]} 10. Nd2 {[%clk 0:03:04.1]} 10... Ndc5 {[%clk 0:03:04.7]} 11. a3
{[%clk 0:02:52.6]} 11... Bd7 {[%clk 0:03:02]} 12. b3 {[%clk 0:02:20.5]} 12... c6
{[%clk 0:02:50.7]} 13. Rb1 {[%clk 0:02:13]} 13... cxd5 {[%clk 0:02:44.4]} 14.
cxd5 {[%clk 0:02:04.1]} 14... Rc8 {[%clk 0:02:25.4]} 15. Nb5 {[%clk 0:01:56.6]}
15... Bxb5 {[%clk 0:02:22.2]} 16. Bxb5 {[%clk 0:01:58.5]} 16... Nc7 {[%clk
0:01:59.4]} 17. Be2 {[%clk 0:01:56]} 17... b5 {[%clk 0:01:55.6]} 18. b4 {[%clk
0:01:48.9]} 18... axb4 {[%clk 0:01:54.1]} 19. axb4 {[%clk 0:01:50.8]} 19... Na4
{[%clk 0:01:54.8]} 20. Rc1 {[%clk 0:01:44.9]} 20... Qd7 {[%clk 0:01:50.4]} 21.
Rc6 {[%clk 0:01:41.4]} 21... Na8 {[%clk 0:01:33.1]} 22. Bxb5 {[%clk 0:01:38.3]}
22... Nc3 {[%clk 0:01:33.1]} 23. Rxc3 {[%clk 0:01:26.8]} 23... Qxb5 {[%clk
0:01:33.6]} 24. Qc2 {[%clk 0:01:22.4]} 24... Rxc3 {[%clk 0:01:27]} 25. Qxc3
{[%clk 0:01:24.3]} 25... Rb8 {[%clk 0:01:27.2]} 26. f3 {[%clk 0:01:18.5]} 26...
Qxb4 {[%clk 0:01:24.8]} 27. Qxb4 {[%clk 0:01:20.4]} 27... Rxb4 {[%clk
0:01:25.5]} 28. Ke2 {[%clk 0:01:22.3]} 28... Nb6 {[%clk 0:00:47.1]} 29. Rc1
{[%clk 0:01:23.3]} 29... Bf8 {[%clk 0:00:43.7]} 30. Rc6 {[%clk 0:01:17.8]} 30...
Nd7 {[%clk 0:00:41.1]} 31. Nc4 {[%clk 0:01:17.3]} 31... Nb8 {[%clk 0:00:33.3]}
32. Rc8 {[%clk 0:01:15.2]} 32... Kg7 {[%clk 0:00:28.6]} 33. f4 {[%clk
0:00:48.6]} 33... Nd7 {[%clk 0:00:17.6]} 34. Rc7 {[%clk 0:00:43.8]} 34... Rb3
{[%clk 0:00:09]} 35. Rxd7 {[%clk 0:00:42.6]} 1-0

[Event "*** Titled Tuesday 3|2 Blitz"]
[Site "Chess.com"]
[Date "2016.10.04"]
[Round "5"]
[White "CheckThis4"]
[Black "Hieronymus00"]
[Result "1-0"]
[WhiteElo "2341"]
[BlackElo "2161"]
[TimeControl "180+2"]
[EndTime "12:01:40 PDT"]
[Termination "CheckThis4 won by resignation"]

1. d4 {[%clk 0:03:02]} 1... Nf6 {[%clk 0:02:47.6]} 2. Nf3 {[%clk 0:03:01.9]}
2... g6 {[%clk 0:02:48]} 3. Nc3 {[%clk 0:02:58]} 3... Bg7 {[%clk 0:02:49.5]} 4.
e4 {[%clk 0:02:58.5]} 4... d6 {[%clk 0:02:50.5]} 5. Be3 {[%clk 0:02:58.7]} 5...
O-O {[%clk 0:02:48.5]} 6. Qd2 {[%clk 0:02:59.3]} 6... Nc6 {[%clk 0:02:26.2]} 7.
d5 {[%clk 0:02:56.3]} 7... Ne5 {[%clk 0:02:25]} 8. Nxe5 {[%clk 0:02:56.6]} 8...
dxe5 {[%clk 0:02:26.2]} 9. f3 {[%clk 0:02:36]} 9... e6 {[%clk 0:02:19]} 10.
O-O-O {[%clk 0:02:28.3]} 10... Qe7 {[%clk 0:02:13.7]} 11. d6 {[%clk 0:02:24.5]}
11... cxd6 {[%clk 0:02:08.3]} 12. Qxd6 {[%clk 0:02:26.4]} 12... Qxd6 {[%clk
0:01:59.8]} 13. Rxd6 {[%clk 0:02:28.3]} 13... Bd7 {[%clk 0:01:58.8]} 14. Bb5
{[%clk 0:02:13.6]} 14... Bxb5 {[%clk 0:01:55.6]} 15. Nxb5 {[%clk 0:02:15.5]}
15... a6 {[%clk 0:01:56.3]} 16. Nc3 {[%clk 0:02:10.4]} 16... Rfd8 {[%clk
0:01:57.4]} 17. Rhd1 {[%clk 0:02:09.6]} 17... Rxd6 {[%clk 0:01:54.8]} 18. Rxd6
{[%clk 0:02:11.5]} 18... Rc8 {[%clk 0:01:53.9]} 19. Na4 {[%clk 0:02:02.8]} 19...
Kf8 {[%clk 0:01:24.1]} 20. Nc5 {[%clk 0:01:51.2]} 20... Ke7 {[%clk 0:00:53.8]}
21. Rb6 {[%clk 0:01:45.3]} 21... Rc7 {[%clk 0:00:54.8]} 22. Rxb7 {[%clk
0:01:38.9]} 22... Rxb7 {[%clk 0:00:55.3]} 23. Nxb7 {[%clk 0:01:40.8]} 23... Nd7
{[%clk 0:00:56.2]} 24. Nc5 {[%clk 0:01:39.6]} 24... Nxc5 {[%clk 0:00:45]} 25.
Bxc5+ {[%clk 0:01:39.7]} 25... Kd7 {[%clk 0:00:45.7]} 26. c4 {[%clk 0:01:37.5]}
26... Kc6 {[%clk 0:00:44.2]} 27. Be3 {[%clk 0:01:37.6]} 27... f5 {[%clk
0:00:44.9]} 28. Kc2 {[%clk 0:01:37.9]} 28... Bf6 {[%clk 0:00:44.3]} 29. b4
{[%clk 0:01:34.8]} 29... g5 {[%clk 0:00:44.6]} 30. h3 {[%clk 0:01:30.3]} 30...
h5 {[%clk 0:00:45]} 31. g4 {[%clk 0:01:25.5]} 31... f4 {[%clk 0:00:38]} 32. Bf2
{[%clk 0:01:23.9]} 32... hxg4 {[%clk 0:00:36.1]} 33. hxg4 {[%clk 0:01:23]} 33...
Be7 {[%clk 0:00:36]} 34. Kb3 {[%clk 0:01:22.5]} 34... Kb7 {[%clk 0:00:28.5]} 35.
a4 {[%clk 0:01:16.5]} 35... Kc6 {[%clk 0:00:21.1]} 36. b5+ {[%clk 0:01:14.5]}
36... axb5 {[%clk 0:00:22.4]} 37. cxb5+ {[%clk 0:01:07.1]} 37... Kb7 {[%clk
0:00:22.9]} 38. a5 {[%clk 0:01:06.9]} 38... Bd6 {[%clk 0:00:23.2]} 39. a6+
{[%clk 0:01:05.1]} 39... Ka8 {[%clk 0:00:22.4]} 40. b6 {[%clk 0:01:01.6]} 40...
Kb8 {[%clk 0:00:23]} 41. Kc4 {[%clk 0:01:02]} 41... Ka8 {[%clk 0:00:20.3]} 42.
Kb5 {[%clk 0:01:02.8]} 42... Kb8 {[%clk 0:00:18.1]} 43. Kc6 {[%clk 0:01:03]} 1-0

[Event "*** Titled Tuesday 3|2 Blitz"]
[Site "Chess.com"]
[Date "2016.10.04"]
[Round "5"]
[White "David_Klein"]
[Black "Noukii"]
[Result "0-1"]
[WhiteElo "2390"]
[BlackElo "2617"]
[TimeControl "180+2"]
[EndTime "12:01:42 PDT"]
[Termination "Noukii won by resignation"]

1. e4 {[%clk 0:03:01.9]} 1... Nf6 {[%clk 0:03:01.6]} 2. e5 {[%clk 0:03:01]} 2...
Nd5 {[%clk 0:03:03.1]} 3. d4 {[%clk 0:03:00.3]} 3... d6 {[%clk 0:03:04.6]} 4.
Nf3 {[%clk 0:03:01.5]} 4... g6 {[%clk 0:03:05.3]} 5. h3 {[%clk 0:03:00.8]} 5...
Bg7 {[%clk 0:03:06]} 6. Bc4 {[%clk 0:03:01.5]} 6... Nb6 {[%clk 0:03:07.4]} 7.
Bb3 {[%clk 0:03:02.5]} 7... O-O {[%clk 0:03:09.1]} 8. O-O {[%clk 0:03:02.1]}
8... Nc6 {[%clk 0:03:10.7]} 9. exd6 {[%clk 0:03:02.8]} 9... cxd6 {[%clk
0:03:12.6]} 10. Re1 {[%clk 0:02:59]} 10... h6 {[%clk 0:03:14.3]} 11. Bf4 {[%clk
0:02:57.4]} 11... e5 {[%clk 0:03:02.6]} 12. Bg3 {[%clk 0:02:49.7]} 12... Bf5
{[%clk 0:02:52.8]} 13. c3 {[%clk 0:02:45.4]} 13... Re8 {[%clk 0:02:34]} 14. Nh4
{[%clk 0:02:33.9]} 14... Qg5 {[%clk 0:02:20.9]} 15. Nd2 {[%clk 0:02:18.1]} 15...
exd4 {[%clk 0:02:16.1]} 16. Rxe8+ {[%clk 0:02:16.4]} 16... Rxe8 {[%clk
0:02:16.5]} 17. Ndf3 {[%clk 0:02:18.3]} 17... Qf6 {[%clk 0:02:17.2]} 18. cxd4
{[%clk 0:02:16.3]} 18... Be4 {[%clk 0:02:18]} 19. Nh2 {[%clk 0:01:52.3]} 19...
Nxd4 {[%clk 0:02:15.8]} 20. Ng4 {[%clk 0:01:52.6]} 20... Qg5 {[%clk 0:01:57.3]}
21. f4 {[%clk 0:01:49.6]} 21... Qe7 {[%clk 0:01:53.3]} 22. Nxh6+ {[%clk
0:01:45.8]} 22... Bxh6 {[%clk 0:01:31.1]} 23. Qxd4 {[%clk 0:01:46.2]} 23... Bg7
{[%clk 0:01:23.9]} 24. Qf2 {[%clk 0:01:46.7]} 24... Qf6 {[%clk 0:01:18.9]} 25.
Rd1 {[%clk 0:01:42.2]} 25... d5 {[%clk 0:01:19.6]} 26. Rd2 {[%clk 0:01:34.2]}
26... Nc4 {[%clk 0:01:18.6]} 27. Bxc4 {[%clk 0:01:35.4]} 27... dxc4 {[%clk
0:01:20.5]} 28. Kh2 {[%clk 0:01:36.8]} 28... a6 {[%clk 0:01:20.3]} 29. Nf3
{[%clk 0:01:35.2]} 29... Qe6 {[%clk 0:01:09]} 30. Ng5 {[%clk 0:01:22.3]} 30...
Qc6 {[%clk 0:01:07.6]} 31. f5 {[%clk 0:00:50.3]} 31... Bxf5 {[%clk 0:01:03.1]}
32. Rd6 {[%clk 0:00:45.8]} 32... Qb5 {[%clk 0:01:02.4]} 33. Rb6 {[%clk
0:00:46.2]} 33... Qd7 {[%clk 0:01:01.8]} 34. Qf3 {[%clk 0:00:44.6]} 34... Qd8
{[%clk 0:00:52.7]} 35. Nxf7 {[%clk 0:00:09.8]} 35... Qxb6 {[%clk 0:00:52.4]} 36.
Ng5 {[%clk 0:00:11.7]} 36... Qc6 {[%clk 0:00:45.1]} 0-1

[Event "*** Titled Tuesday 3|2 Blitz"]
[Site "Chess.com"]
[Date "2016.10.04"]
[Round "5"]
[White "Malev212"]
[Black "NTBT_DHS"]
[Result "1-0"]
[WhiteElo "2329"]
[BlackElo "2444"]
[TimeControl "180+2"]
[EndTime "12:02:00 PDT"]
[Termination "Malev212 won by resignation"]

1. e4 {[%clk 0:03:01.9]} 1... g6 {[%clk 0:03:00.5]} 2. Nc3 {[%clk 0:02:59.7]}
2... Bg7 {[%clk 0:03:00.4]} 3. h4 {[%clk 0:03:01.2]} 3... Nc6 {[%clk 0:03:00.8]}
4. h5 {[%clk 0:03:01.5]} 4... d6 {[%clk 0:02:59.9]} 5. Bc4 {[%clk 0:03:00.7]}
5... Nd4 {[%clk 0:02:52.8]} 6. d3 {[%clk 0:02:58.3]} 6... a6 {[%clk 0:02:49.3]}
7. a3 {[%clk 0:02:57.3]} 7... e6 {[%clk 0:02:39.6]} 8. Be3 {[%clk 0:02:56.6]}
8... c5 {[%clk 0:02:38.4]} 9. Nf3 {[%clk 0:02:52.7]} 9... Ne7 {[%clk 0:02:25.7]}
10. h6 {[%clk 0:02:50.5]} 10... Bf6 {[%clk 0:02:27]} 11. Qd2 {[%clk 0:02:44.8]}
11... Nec6 {[%clk 0:02:27.6]} 12. Nh2 {[%clk 0:02:36.3]} 12... O-O {[%clk
0:02:23.9]} 13. Ba2 {[%clk 0:02:37]} 13... b5 {[%clk 0:02:18.4]} 14. O-O {[%clk
0:02:36.2]} 14... Bb7 {[%clk 0:02:08.2]} 15. f4 {[%clk 0:02:36.6]} 15... Bh8
{[%clk 0:02:05.3]} 16. Qf2 {[%clk 0:02:30.9]} 16... b4 {[%clk 0:01:44.8]} 17.
axb4 {[%clk 0:02:26.5]} 17... Nxb4 {[%clk 0:01:34.5]} 18. Bb1 {[%clk 0:02:27.2]}
18... f5 {[%clk 0:01:33.9]} 19. Na4 {[%clk 0:02:21.6]} 19... fxe4 {[%clk
0:01:22.3]} 20. c3 {[%clk 0:02:22.2]} 20... Nd5 {[%clk 0:01:23.6]} 21. dxe4
{[%clk 0:02:16.8]} 21... Nxe3 {[%clk 0:01:21.6]} 22. Qxe3 {[%clk 0:02:17.7]}
22... Qh4 {[%clk 0:01:22.2]} 23. Kh1 {[%clk 0:01:53.3]} 23... Nb3 {[%clk
0:00:58.4]} 24. Ba2 {[%clk 0:01:53.9]} 24... c4 {[%clk 0:00:56.5]} 25. Rad1
{[%clk 0:01:54.2]} 25... Qxh6 {[%clk 0:00:52.8]} 26. Nb6 {[%clk 0:01:53.7]}
26... Be5 {[%clk 0:00:36.6]} 27. g3 {[%clk 0:01:40.9]} 27... Nc5 {[%clk
0:00:29.1]} 28. Bb1 {[%clk 0:01:39.1]} 28... Rad8 {[%clk 0:00:27]} 29. Kg2
{[%clk 0:01:37.8]} 29... Nd3 {[%clk 0:00:24.3]} 30. Nxc4 {[%clk 0:01:28.4]}
30... Nxf4+ {[%clk 0:00:22.3]} 31. gxf4 {[%clk 0:01:28]} 31... Bxf4 {[%clk
0:00:22.6]} 32. Qh3 {[%clk 0:01:29.2]} 32... Qg5+ {[%clk 0:00:23.9]} 33. Qg4
{[%clk 0:01:29.4]} 33... Qh6 {[%clk 0:00:25.4]} 34. Nf3 {[%clk 0:01:28.8]} 34...
Rf6 {[%clk 0:00:24.5]} 35. Rh1 {[%clk 0:01:12.1]} 35... Qg7 {[%clk 0:00:25.5]}
36. e5 {[%clk 0:01:08.7]} 36... Rf7 {[%clk 0:00:19.3]} 37. Nxd6 {[%clk
0:01:03.8]} 37... Rxd6 {[%clk 0:00:15.5]} 38. Rxd6 {[%clk 0:01:02.1]} 38... h5
{[%clk 0:00:16.3]} 39. Rd8+ {[%clk 0:01:00.3]} 39... Rf8 {[%clk 0:00:17.7]} 40.
Qxe6+ {[%clk 0:00:59.7]} 40... Kh7 {[%clk 0:00:18.6]} 41. Rxh5+ {[%clk 0:00:59]}
41... Bh6 {[%clk 0:00:19.8]} 42. Rxf8 {[%clk 0:00:51.7]} 42... Qxf8 {[%clk
0:00:15.4]} 43. Qxg6+ {[%clk 0:00:51]} 1-0